[Event "Early-Titled-Tuesday-Blitz-October-03-2023"]
[Site "Chess.com"]
[Date "2023.10.03"]
[Round "8"]
[White "noblerone"]
[Black "mmDarko"]
[Result "1-0"]
[WhiteElo "2500"]
[BlackElo "2327"]
[TimeControl "180+1"]
[EndTime "9:29:38 PDT"]
[Termination "noblerone won on time"]

1. d4 {[%clk 0:03:00.9]} 1... Nf6 {[%clk 0:02:06.5]} 2. Nf3 {[%clk 0:02:59.2]}
2... b6 {[%clk 0:02:05.4]} 3. Bg5 {[%clk 0:02:55.5]} 3... e6 {[%clk 0:02:04.4]}
4. Nbd2 {[%clk 0:02:55.1]} 4... Bb7 {[%clk 0:02:02]} 5. e3 {[%clk 0:02:54.3]}
5... Be7 {[%clk 0:02:01.8]} 6. Bd3 {[%clk 0:02:54]} 6... d5 {[%clk 0:02:00.2]}
7. c3 {[%clk 0:02:52.4]} 7... O-O {[%clk 0:01:59.9]} 8. Ne5 {[%clk 0:02:47.2]}
8... Ne4 {[%clk 0:01:46.6]} 9. Bxe7 {[%clk 0:02:31.9]} 9... Qxe7 {[%clk
0:01:46.7]} 10. O-O {[%clk 0:02:32]} 10... f6 {[%clk 0:01:39.5]} 11. Nef3 {[%clk
0:02:26.5]} 11... Nd7 {[%clk 0:01:38.8]} 12. a4 {[%clk 0:02:24.5]} 12... a5
{[%clk 0:01:36.2]} 13. Qe2 {[%clk 0:02:23.2]} 13... e5 {[%clk 0:01:29.4]} 14. h3
{[%clk 0:02:01]} 14... Nxd2 {[%clk 0:01:16.8]} 15. Nxd2 {[%clk 0:01:59.3]} 15...
e4 {[%clk 0:01:16.9]} 16. Bc2 {[%clk 0:01:57.1]} 16... f5 {[%clk 0:01:01.1]} 17.
f4 {[%clk 0:01:52.3]} 17... exf3 {[%clk 0:00:41.8]} 18. Rxf3 {[%clk 0:01:22.3]}
18... g6 {[%clk 0:00:40.9]} 19. Bb3 {[%clk 0:01:11.5]} 19... Nf6 {[%clk
0:00:32.9]} 20. Re1 {[%clk 0:01:03.4]} 20... c6 {[%clk 0:00:29.2]} 21. Rf4
{[%clk 0:01:01.2]} 21... Ba6 {[%clk 0:00:25.4]} 22. Qf2 {[%clk 0:00:56.2]} 22...
Rae8 {[%clk 0:00:20.4]} 23. Qh4 {[%clk 0:00:50.5]} 23... Ne4 {[%clk 0:00:19.2]}
24. Qxe7 {[%clk 0:00:48.6]} 24... Rxe7 {[%clk 0:00:18.4]} 25. Nxe4 {[%clk
0:00:47.7]} 25... fxe4 {[%clk 0:00:17.8]} 26. Rxf8+ {[%clk 0:00:40.2]} 26...
Kxf8 {[%clk 0:00:18.7]} 27. Rc1 {[%clk 0:00:36.1]} 27... Bd3 {[%clk 0:00:16.6]}
28. c4 {[%clk 0:00:34.1]} 28... dxc4 {[%clk 0:00:16.2]} 29. Bxc4 {[%clk
0:00:34]} 29... b5 {[%clk 0:00:14.2]} 30. axb5 {[%clk 0:00:31.9]} 30... cxb5
{[%clk 0:00:13.8]} 31. Bd5 {[%clk 0:00:32.5]} 31... a4 {[%clk 0:00:12]} 32. Rc8+
{[%clk 0:00:27.9]} 32... Re8 {[%clk 0:00:11]} 33. Rc7 {[%clk 0:00:22.7]} 33...
Re7 {[%clk 0:00:10.4]} 34. Rc5 {[%clk 0:00:18.3]} 34... b4 {[%clk 0:00:07.4]}
35. Ra5 {[%clk 0:00:18.3]} 35... a3 {[%clk 0:00:06.3]} 36. bxa3 {[%clk
0:00:18.8]} 36... Rd7 {[%clk 0:00:05]} 37. axb4 {[%clk 0:00:18.1]} 1-0

[Event "Early-Titled-Tuesday-Blitz-October-03-2023"]
[Site "Chess.com"]
[Date "2023.10.03"]
[Round "8"]
[White "Wizard_97"]
[Black "wannabe2700"]
[Result "0-1"]
[WhiteElo "2530"]
[BlackElo "2681"]
[TimeControl "180+1"]
[EndTime "9:29:48 PDT"]
[Termination "wannabe2700 won by checkmate"]

1. e4 {[%clk 0:03:00.9]} 1... d5 {[%clk 0:02:59.3]} 2. exd5 {[%clk 0:03:00.9]}
2... Qxd5 {[%clk 0:03:00.2]} 3. Nc3 {[%clk 0:03:01.3]} 3... Qe5+ {[%clk
0:03:00.2]} 4. Be2 {[%clk 0:02:59.9]} 4... Bg4 {[%clk 0:03:00.3]} 5. d4 {[%clk
0:03:00.1]} 5... Bxe2 {[%clk 0:03:00.7]} 6. Ngxe2 {[%clk 0:03:01]} 6... Qa5
{[%clk 0:03:01]} 7. Bd2 {[%clk 0:02:58.3]} 7... Nf6 {[%clk 0:03:00.1]} 8. b4
{[%clk 0:02:48.2]} 8... Qh5 {[%clk 0:02:58.7]} 9. O-O {[%clk 0:02:47.6]} 9...
Nc6 {[%clk 0:02:54.1]} 10. b5 {[%clk 0:02:44.3]} 10... Na5 {[%clk 0:02:54.2]}
11. Bf4 {[%clk 0:02:41.2]} 11... O-O-O {[%clk 0:02:52.7]} 12. Qc1 {[%clk
0:02:30.7]} 12... e6 {[%clk 0:02:48.7]} 13. Rb1 {[%clk 0:02:29.7]} 13... Bd6
{[%clk 0:02:44.8]} 14. Ng3 {[%clk 0:02:18.1]} 14... Bxf4 {[%clk 0:02:29.3]} 15.
Qxf4 {[%clk 0:02:19]} 15... Qg6 {[%clk 0:02:24.5]} 16. Rfd1 {[%clk 0:02:16]}
16... Nc4 {[%clk 0:02:09.7]} 17. Nce4 {[%clk 0:02:12.9]} 17... Nd5 {[%clk
0:01:54.1]} 18. Qf3 {[%clk 0:02:11.9]} 18... h5 {[%clk 0:01:48.2]} 19. Nc5
{[%clk 0:02:11.2]} 19... h4 {[%clk 0:01:44.6]} 20. Nge4 {[%clk 0:02:08.4]} 20...
h3 {[%clk 0:01:43.5]} 21. g3 {[%clk 0:02:08.5]} 21... e5 {[%clk 0:01:35.7]} 22.
Nc3 {[%clk 0:02:06.7]} 22... Qf6 {[%clk 0:01:14.9]} 23. Qxf6 {[%clk 0:01:55.2]}
23... Nxf6 {[%clk 0:01:13.9]} 24. dxe5 {[%clk 0:01:54.3]} 24... Nxe5 {[%clk
0:01:12.1]} 25. N5e4 {[%clk 0:01:50.1]} 25... Nf3+ {[%clk 0:01:10.7]} 26. Kh1
{[%clk 0:01:46.4]} 26... Ng4 {[%clk 0:01:10.5]} 27. Nd5 {[%clk 0:01:11.1]} 27...
Rhe8 {[%clk 0:01:04.1]} 28. Rb3 {[%clk 0:01:00.2]} 28... Rxe4 {[%clk 0:01:01]}
29. Rxf3 {[%clk 0:01:00.4]} 29... Rxd5 {[%clk 0:01:00.5]} 30. Rf1 {[%clk
0:00:54.6]} 30... f5 {[%clk 0:00:55.2]} 31. Ra3 {[%clk 0:00:55.1]} 31... Re2
{[%clk 0:00:49]} 32. Kg1 {[%clk 0:00:18.2]} 32... Rdd2 {[%clk 0:00:48.1]} 33.
Rf3 {[%clk 0:00:14.5]} 33... g6 {[%clk 0:00:48]} 34. a4 {[%clk 0:00:13]} 34...
a5 {[%clk 0:00:47.1]} 35. c4 {[%clk 0:00:12.2]} 35... b6 {[%clk 0:00:46]} 36.
Rf4 {[%clk 0:00:11.9]} 36... Kd7 {[%clk 0:00:45.6]} 37. Rf3 {[%clk 0:00:09.4]}
37... Kd6 {[%clk 0:00:45.7]} 38. Rf4 {[%clk 0:00:09.7]} 38... Kc5 {[%clk
0:00:45.7]} 39. Rf3 {[%clk 0:00:09]} 39... Kb4 {[%clk 0:00:45]} 40. Rf4 {[%clk
0:00:08.8]} 40... Kxa4 {[%clk 0:00:44.4]} 41. c5+ {[%clk 0:00:09.2]} 41... Kxb5
{[%clk 0:00:44.5]} 42. cxb6 {[%clk 0:00:09]} 42... cxb6 {[%clk 0:00:44.6]} 43.
Kh1 {[%clk 0:00:06.2]} 43... Nxf2+ {[%clk 0:00:41.6]} 44. Kg1 {[%clk 0:00:06.3]}
44... Ng4 {[%clk 0:00:40.8]} 45. Rb1+ {[%clk 0:00:02.1]} 45... Ka6 {[%clk
0:00:40.5]} 46. Rxb6+ {[%clk 0:00:01.2]} 46... Kxb6 {[%clk 0:00:40.2]} 47. Rb4+
{[%clk 0:00:02.1]} 47... axb4 {[%clk 0:00:39.5]} 48. Kf1 {[%clk 0:00:03]} 48...
b3 {[%clk 0:00:38.9]} 49. Kg1 {[%clk 0:00:03]} 49... b2 {[%clk 0:00:39]} 50. Kf1
{[%clk 0:00:03.9]} 50... b1=Q# {[%clk 0:00:39.1]} 0-1

[Event "Early-Titled-Tuesday-Blitz-October-03-2023"]
[Site "Chess.com"]
[Date "2023.10.03"]
[Round "8"]
[White "Mr_Lion22"]
[Black "ljm509"]
[Result "1-0"]
[WhiteElo "2494"]
[BlackElo "2323"]
[TimeControl "180+1"]
[EndTime "9:29:48 PDT"]
[Termination "Mr_Lion22 won on time"]

1. d4 {[%clk 0:02:56.5]} 1... Nf6 {[%clk 0:02:28.1]} 2. c4 {[%clk 0:02:57.4]}
2... e6 {[%clk 0:02:24.6]} 3. Nc3 {[%clk 0:02:57.6]} 3... Bb4 {[%clk 0:02:21.2]}
4. f3 {[%clk 0:02:56.7]} 4... d5 {[%clk 0:02:20.5]} 5. a3 {[%clk 0:02:57]} 5...
Bxc3+ {[%clk 0:02:20.4]} 6. bxc3 {[%clk 0:02:57.9]} 6... O-O {[%clk 0:02:20.1]}
7. cxd5 {[%clk 0:02:58.8]} 7... exd5 {[%clk 0:02:20]} 8. e3 {[%clk 0:02:59]}
8... Re8 {[%clk 0:02:19.7]} 9. Bd3 {[%clk 0:02:59.1]} 9... c5 {[%clk 0:02:19.5]}
10. Ne2 {[%clk 0:02:59.7]} 10... Nc6 {[%clk 0:02:19.6]} 11. O-O {[%clk
0:02:59.8]} 11... c4 {[%clk 0:02:13.1]} 12. Bb1 {[%clk 0:02:57.1]} 12... b5
{[%clk 0:02:11.3]} 13. Ng3 {[%clk 0:02:51]} 13... a5 {[%clk 0:02:00.9]} 14. e4
{[%clk 0:02:51.1]} 14... Rb8 {[%clk 0:01:57.7]} 15. e5 {[%clk 0:02:50.4]} 15...
Nd7 {[%clk 0:01:57.6]} 16. f4 {[%clk 0:02:24.3]} 16... b4 {[%clk 0:01:52.5]} 17.
axb4 {[%clk 0:02:25.2]} 17... axb4 {[%clk 0:01:52.5]} 18. Nf5 {[%clk 0:02:08.3]}
18... Nf8 {[%clk 0:01:34.3]} 19. Nd6 {[%clk 0:02:05.9]} 19... Re6 {[%clk
0:01:23.7]} 20. Nxc8 {[%clk 0:02:04.4]} 20... Qxc8 {[%clk 0:01:22.1]} 21. f5
{[%clk 0:02:00.7]} 21... Re8 {[%clk 0:01:19.2]} 22. f6 {[%clk 0:02:01]} 22... g6
{[%clk 0:01:18.1]} 23. Qd2 {[%clk 0:01:26.8]} 23... bxc3 {[%clk 0:01:15.3]} 24.
Qh6 {[%clk 0:01:26.9]} 24... Ne6 {[%clk 0:01:15]} 25. Bf5 {[%clk 0:01:19.6]}
25... Ncxd4 {[%clk 0:01:02.7]} 26. Bxe6 {[%clk 0:00:42.6]} 26... Nxe6 {[%clk
0:01:01.6]} 27. Ba3 {[%clk 0:00:19.1]} 27... c2 {[%clk 0:00:23.2]} 28. Rac1
{[%clk 0:00:18.5]} 28... Ra8 {[%clk 0:00:16.2]} 29. Bd6 {[%clk 0:00:09.1]} 29...
Ra2 {[%clk 0:00:07.3]} 30. Rf4 {[%clk 0:00:08.6]} 30... Qa8 {[%clk 0:00:04.7]}
31. Rh4 {[%clk 0:00:08.1]} 31... Qa7+ {[%clk 0:00:05]} 32. Kf1 {[%clk
0:00:04.6]} 32... Qf2+ {[%clk 0:00:03.5]} 33. Kxf2 {[%clk 0:00:04.3]} 1-0

[Event "Early-Titled-Tuesday-Blitz-October-03-2023"]
[Site "Chess.com"]
[Date "2023.10.03"]
[Round "8"]
[White "Goi_Manne"]
[Black "UK_23"]
[Result "0-1"]
[WhiteElo "2292"]
[BlackElo "2432"]
[TimeControl "180+1"]
[EndTime "9:29:51 PDT"]
[Termination "UK_23 won by resignation"]

1. e4 {[%clk 0:02:55.6]} 1... e5 {[%clk 0:02:46.6]} 2. Nf3 {[%clk 0:02:54.1]}
2... Nc6 {[%clk 0:02:46.7]} 3. Bc4 {[%clk 0:02:54.1]} 3... Nf6 {[%clk 0:02:47]}
4. d3 {[%clk 0:02:54.3]} 4... Be7 {[%clk 0:02:46.6]} 5. O-O {[%clk 0:02:54.5]}
5... O-O {[%clk 0:02:47.3]} 6. c3 {[%clk 0:02:55]} 6... d5 {[%clk 0:02:47.6]} 7.
exd5 {[%clk 0:02:54.5]} 7... Nxd5 {[%clk 0:02:48.5]} 8. Re1 {[%clk 0:02:54.2]}
8... Bg4 {[%clk 0:02:48.4]} 9. h3 {[%clk 0:02:51.6]} 9... Bh5 {[%clk 0:02:44.7]}
10. Bb3 {[%clk 0:02:48.6]} 10... Nb6 {[%clk 0:02:40.6]} 11. Bc2 {[%clk
0:02:48.3]} 11... f5 {[%clk 0:02:38.9]} 12. Nbd2 {[%clk 0:02:47.3]} 12... Bd6
{[%clk 0:02:36.9]} 13. Bb3+ {[%clk 0:02:43.9]} 13... Kh8 {[%clk 0:02:37.1]} 14.
Qc2 {[%clk 0:02:44.5]} 14... Qf6 {[%clk 0:02:30.1]} 15. a4 {[%clk 0:02:43.5]}
15... a5 {[%clk 0:02:29.9]} 16. Nh2 {[%clk 0:02:32.1]} 16... Rae8 {[%clk
0:02:24.7]} 17. Ndf1 {[%clk 0:02:31.2]} 17... f4 {[%clk 0:02:18.2]} 18. f3
{[%clk 0:02:17.6]} 18... Bc5+ {[%clk 0:02:06.9]} 19. Kh1 {[%clk 0:02:17.7]}
19... Ne7 {[%clk 0:02:04]} 20. Nd2 {[%clk 0:02:02.9]} 20... Nf5 {[%clk
0:01:56.3]} 21. Ne4 {[%clk 0:02:02.5]} 21... Ng3+ {[%clk 0:01:56.8]} 22. Nxg3
{[%clk 0:02:01.9]} 22... fxg3 {[%clk 0:01:57.7]} 23. Nf1 {[%clk 0:02:02]} 23...
Bf2 {[%clk 0:01:56.4]} 24. Be3 {[%clk 0:01:47]} 24... Bxe1 {[%clk 0:01:50.1]}
25. Rxe1 {[%clk 0:01:42.3]} 25... Bxf3 {[%clk 0:01:39.8]} 26. gxf3 {[%clk
0:01:30.8]} 26... Qxf3+ {[%clk 0:01:40.7]} 27. Qg2 {[%clk 0:01:31]} 27... e4
{[%clk 0:01:32.4]} 28. Bxb6 {[%clk 0:01:26.4]} 28... cxb6 {[%clk 0:01:28.7]} 29.
Qxf3 {[%clk 0:01:24.2]} 29... exf3 {[%clk 0:01:29.6]} 30. Rxe8 {[%clk
0:01:23.4]} 30... g2+ {[%clk 0:01:29.5]} 31. Kh2 {[%clk 0:01:18.5]} 31... Rxe8
{[%clk 0:01:19]} 32. Nd2 {[%clk 0:01:18.7]} 32... Re3 {[%clk 0:01:01.9]} 33. Bc4
{[%clk 0:01:12.8]} 33... g5 {[%clk 0:01:01.6]} 34. d4 {[%clk 0:01:06.6]} 34...
Kg7 {[%clk 0:01:01.1]} 35. d5 {[%clk 0:01:06.2]} 35... Kf6 {[%clk 0:01:00.1]}
36. d6 {[%clk 0:01:04.4]} 36... h5 {[%clk 0:00:58.2]} 37. Nxf3 {[%clk
0:00:48.3]} 37... Rxf3 {[%clk 0:00:54.1]} 38. Kxg2 {[%clk 0:00:49]} 38... g4
{[%clk 0:00:52.2]} 39. hxg4 {[%clk 0:00:48]} 39... hxg4 {[%clk 0:00:53.1]} 40.
d7 {[%clk 0:00:48.2]} 40... Ke7 {[%clk 0:00:53.1]} 41. Bb5 {[%clk 0:00:48.6]}
41... Re3 {[%clk 0:00:48.9]} 42. Kf2 {[%clk 0:00:47.6]} 42... Rh3 {[%clk
0:00:48]} 43. Kg2 {[%clk 0:00:47.9]} 43... Kd8 {[%clk 0:00:47.3]} 44. Kg1 {[%clk
0:00:36.1]} 44... Rf3 {[%clk 0:00:30]} 45. Kg2 {[%clk 0:00:35.3]} 45... Kc7
{[%clk 0:00:30.8]} 46. Kg1 {[%clk 0:00:34.3]} 46... g3 {[%clk 0:00:16.9]} 47.
Kg2 {[%clk 0:00:33.4]} 47... Rf2+ {[%clk 0:00:17.3]} 48. Kxg3 {[%clk 0:00:33.6]}
48... Rxb2 {[%clk 0:00:18.2]} 49. c4 {[%clk 0:00:29]} 49... Rxb5 {[%clk
0:00:15]} 50. cxb5 {[%clk 0:00:29.7]} 50... Kxd7 {[%clk 0:00:15.9]} 51. Kf3
{[%clk 0:00:30.3]} 51... Kd6 {[%clk 0:00:16.6]} 52. Ke3 {[%clk 0:00:31]} 52...
Kc5 {[%clk 0:00:17.3]} 53. Kd3 {[%clk 0:00:31.7]} 53... Kb4 {[%clk 0:00:17.9]}
54. Kd4 {[%clk 0:00:31.3]} 54... Kxa4 {[%clk 0:00:16.6]} 55. Kc4 {[%clk
0:00:32]} 55... Ka3 {[%clk 0:00:17]} 56. Kd5 {[%clk 0:00:32.2]} 56... Kb4 {[%clk
0:00:17.3]} 57. Kd6 {[%clk 0:00:32.1]} 57... Kxb5 {[%clk 0:00:17.9]} 58. Kc7
{[%clk 0:00:33]} 58... a4 {[%clk 0:00:18.6]} 59. Kb8 {[%clk 0:00:33.9]} 59... a3
{[%clk 0:00:19.1]} 60. Ka7 {[%clk 0:00:34.8]} 60... a2 {[%clk 0:00:20]} 0-1

[Event "Early-Titled-Tuesday-Blitz-October-03-2023"]
[Site "Chess.com"]
[Date "2023.10.03"]
[Round "8"]
[White "DanyKopy"]
[Black "LionTheLeon_06"]
[Result "1-0"]
[WhiteElo "2579"]
[BlackElo "2773"]
[TimeControl "180+1"]
[EndTime "9:29:57 PDT"]
[Termination "DanyKopy won by resignation"]

1. d4 {[%clk 0:03:00.9]} 1... Nf6 {[%clk 0:02:59.7]} 2. Nf3 {[%clk 0:02:59]}
2... b6 {[%clk 0:02:58.7]} 3. c4 {[%clk 0:02:57.6]} 3... Bb7 {[%clk 0:02:58.4]}
4. Bf4 {[%clk 0:02:52.2]} 4... e6 {[%clk 0:02:56.5]} 5. a3 {[%clk 0:02:52]} 5...
Nh5 {[%clk 0:02:55.5]} 6. Bg5 {[%clk 0:02:47.9]} 6... Be7 {[%clk 0:02:55.8]} 7.
Bxe7 {[%clk 0:02:47.8]} 7... Qxe7 {[%clk 0:02:56.7]} 8. Nc3 {[%clk 0:02:45.2]}
8... O-O {[%clk 0:02:54.5]} 9. e3 {[%clk 0:02:44.5]} 9... d6 {[%clk 0:02:52.9]}
10. Bd3 {[%clk 0:02:38.7]} 10... f5 {[%clk 0:02:40]} 11. O-O {[%clk 0:02:38.1]}
11... Nd7 {[%clk 0:02:39.5]} 12. Re1 {[%clk 0:02:36.8]} 12... e5 {[%clk
0:02:31.7]} 13. Nxe5 {[%clk 0:02:20.4]} 13... dxe5 {[%clk 0:02:32.6]} 14. Qxh5
{[%clk 0:02:18.1]} 14... e4 {[%clk 0:02:30.8]} 15. Bf1 {[%clk 0:02:12.3]} 15...
Rf6 {[%clk 0:02:29.7]} 16. Nd5 {[%clk 0:02:01.1]} 16... Bxd5 {[%clk 0:02:28.5]}
17. cxd5 {[%clk 0:02:02]} 17... Raf8 {[%clk 0:02:27.1]} 18. Qh4 {[%clk
0:01:58.7]} 18... R6f7 {[%clk 0:01:42.1]} 19. Qxe7 {[%clk 0:01:56.6]} 19... Rxe7
{[%clk 0:01:43]} 20. Rac1 {[%clk 0:01:54.7]} 20... Nf6 {[%clk 0:01:43.4]} 21.
Rc6 {[%clk 0:01:51.4]} 21... Rd8 {[%clk 0:01:36.5]} 22. Rec1 {[%clk 0:01:46.8]}
22... Ne8 {[%clk 0:01:34.6]} 23. Re6 {[%clk 0:01:28.7]} 23... Kf8 {[%clk
0:01:33.9]} 24. Bb5 {[%clk 0:01:19.9]} 24... Nd6 {[%clk 0:00:25.3]} 25. Rxe7
{[%clk 0:01:16.8]} 25... Kxe7 {[%clk 0:00:26.2]} 26. Rxc7+ {[%clk 0:01:15.4]}
26... Kf6 {[%clk 0:00:27.1]} 27. Bc6 {[%clk 0:00:46.6]} 27... a5 {[%clk
0:00:27.4]} 28. f3 {[%clk 0:00:41]} 28... h5 {[%clk 0:00:19.7]} 29. h4 {[%clk
0:00:37.4]} 29... f4 {[%clk 0:00:18]} 30. fxe4 {[%clk 0:00:29]} 30... Nxe4
{[%clk 0:00:18.3]} 31. exf4 {[%clk 0:00:29.3]} 31... Ng3 {[%clk 0:00:18.2]} 32.
Kf2 {[%clk 0:00:23.2]} 32... Nf5 {[%clk 0:00:18.2]} 33. Rb7 {[%clk 0:00:20.2]}
33... Nxh4 {[%clk 0:00:18.4]} 34. Rxb6 {[%clk 0:00:20]} 34... Rd6 {[%clk
0:00:19.3]} 35. Ra6 {[%clk 0:00:17.8]} 35... Nf5 {[%clk 0:00:20]} 36. Rxa5
{[%clk 0:00:18]} 36... Nxd4 {[%clk 0:00:20.5]} 37. Rc5 {[%clk 0:00:17.4]} 37...
Kf5 {[%clk 0:00:20.7]} 38. Ke3 {[%clk 0:00:15.1]} 38... Nb3 {[%clk 0:00:21.1]}
39. Rc3 {[%clk 0:00:14.9]} 39... Na1 {[%clk 0:00:20.1]} 40. b4 {[%clk
0:00:14.4]} 40... Kg4 {[%clk 0:00:18.9]} 41. b5 {[%clk 0:00:14.5]} 41... Kg3
{[%clk 0:00:19.4]} 42. b6 {[%clk 0:00:10.4]} 42... Kxg2 {[%clk 0:00:20]} 43. b7
{[%clk 0:00:10.5]} 43... Rd8 {[%clk 0:00:20.3]} 44. a4 {[%clk 0:00:10.1]} 44...
h4 {[%clk 0:00:20.3]} 45. a5 {[%clk 0:00:10.5]} 45... h3 {[%clk 0:00:20.9]} 46.
a6 {[%clk 0:00:10.5]} 46... h2 {[%clk 0:00:20.8]} 47. a7 {[%clk 0:00:10.5]}
47... Rd6 {[%clk 0:00:17.8]} 48. Rc1 {[%clk 0:00:09.6]} 48... h1=Q {[%clk
0:00:18.7]} 49. Rxh1 {[%clk 0:00:09.2]} 1-0

[Event "Early-Titled-Tuesday-Blitz-October-03-2023"]
[Site "Chess.com"]
[Date "2023.10.03"]
[Round "8"]
[White "kritipatel"]
[Black "HrvojeZagreb"]
[Result "1-0"]
[WhiteElo "2142"]
[BlackElo "2305"]
[TimeControl "180+1"]
[EndTime "9:29:57 PDT"]
[Termination "kritipatel won by resignation"]

1. e4 {[%clk 0:03:00.9]} 1... c5 {[%clk 0:02:09.5]} 2. d4 {[%clk 0:02:58.8]}
2... cxd4 {[%clk 0:02:08.7]} 3. c3 {[%clk 0:02:59.3]} 3... d3 {[%clk 0:02:05.1]}
4. Bxd3 {[%clk 0:02:58.4]} 4... Nc6 {[%clk 0:02:05.4]} 5. c4 {[%clk 0:02:58.8]}
5... g6 {[%clk 0:02:05.6]} 6. Nf3 {[%clk 0:02:59.2]} 6... Bg7 {[%clk 0:02:06.2]}
7. O-O {[%clk 0:02:59.4]} 7... d6 {[%clk 0:02:06.8]} 8. Nc3 {[%clk 0:02:59.2]}
8... Bg4 {[%clk 0:02:07]} 9. h3 {[%clk 0:02:58.6]} 9... Bxf3 {[%clk 0:02:06.8]}
10. Qxf3 {[%clk 0:02:59.1]} 10... Nf6 {[%clk 0:02:07.4]} 11. Bf4 {[%clk
0:02:57.2]} 11... O-O {[%clk 0:02:06.7]} 12. Rfd1 {[%clk 0:02:56.7]} 12... Ne5
{[%clk 0:02:05.3]} 13. Bxe5 {[%clk 0:02:54.2]} 13... dxe5 {[%clk 0:02:06.2]} 14.
Bf1 {[%clk 0:02:53.8]} 14... Qb6 {[%clk 0:02:02.3]} 15. b3 {[%clk 0:02:48]}
15... Rfd8 {[%clk 0:02:01.4]} 16. Rac1 {[%clk 0:02:47.3]} 16... Rd4 {[%clk
0:02:01.1]} 17. Nb5 {[%clk 0:02:39.6]} 17... Rxd1 {[%clk 0:01:58.4]} 18. Rxd1
{[%clk 0:02:33.2]} 18... a6 {[%clk 0:01:58.1]} 19. Nc3 {[%clk 0:02:31.7]} 19...
Rd8 {[%clk 0:01:58]} 20. Rxd8+ {[%clk 0:02:28.4]} 20... Qxd8 {[%clk 0:01:58.9]}
21. Kh2 {[%clk 0:02:22.5]} 21... Qd4 {[%clk 0:01:57.7]} 22. Qd3 {[%clk
0:02:20.5]} 22... e6 {[%clk 0:01:54.9]} 23. Kg1 {[%clk 0:02:10.9]} 23... Bf8
{[%clk 0:01:52.6]} 24. Na4 {[%clk 0:02:05.6]} 24... Nxe4 {[%clk 0:01:47.4]} 25.
Qf3 {[%clk 0:01:58.5]} 25... f5 {[%clk 0:01:43]} 26. h4 {[%clk 0:01:52.3]} 26...
b5 {[%clk 0:01:40.3]} 27. cxb5 {[%clk 0:01:50.7]} 27... axb5 {[%clk 0:01:41.2]}
28. Bxb5 {[%clk 0:01:49.2]} 28... Nd2 {[%clk 0:01:35.1]} 29. Qc6 {[%clk
0:01:38.9]} 29... Ne4 {[%clk 0:00:59.1]} 30. Qxe6+ {[%clk 0:01:11.2]} 30... Kg7
{[%clk 0:00:58.9]} 31. Qd7+ {[%clk 0:01:08]} 31... Kh6 {[%clk 0:00:58.7]} 32.
Qxd4 {[%clk 0:01:06.1]} 32... exd4 {[%clk 0:00:56.9]} 33. Kf1 {[%clk 0:01:05.9]}
33... Kh5 {[%clk 0:00:47.5]} 34. g3 {[%clk 0:01:04.2]} 34... Kg4 {[%clk
0:00:40.9]} 35. Be2+ {[%clk 0:01:03.8]} 35... Kh3 {[%clk 0:00:41.1]} 36. Nb6
{[%clk 0:00:55.3]} 36... Bc5 {[%clk 0:00:29.1]} 37. Nd5 {[%clk 0:00:53.4]} 37...
d3 {[%clk 0:00:19.9]} 38. Nf4+ {[%clk 0:00:44]} 38... Kh2 {[%clk 0:00:18.8]} 39.
Nxd3 {[%clk 0:00:43.5]} 39... Nc3 {[%clk 0:00:12.1]} 40. Nxc5 {[%clk 0:00:40]}
40... Nxa2 {[%clk 0:00:11.8]} 41. Ne6 {[%clk 0:00:36.7]} 41... Nc1 {[%clk
0:00:09]} 42. Nf8 {[%clk 0:00:36.5]} 42... Nxb3 {[%clk 0:00:08.9]} 43. Nxh7
{[%clk 0:00:36.7]} 43... Nd4 {[%clk 0:00:08.8]} 44. Nf8 {[%clk 0:00:36.8]} 44...
f4 {[%clk 0:00:08.1]} 45. gxf4 {[%clk 0:00:35.4]} 45... Kh3 {[%clk 0:00:06.1]}
46. Nxg6 {[%clk 0:00:26.9]} 46... Ne6 {[%clk 0:00:06.4]} 47. f5 {[%clk 0:00:26]}
47... Ng7 {[%clk 0:00:05.4]} 48. f6 {[%clk 0:00:26.3]} 48... Ne6 {[%clk
0:00:05.3]} 49. f7 {[%clk 0:00:26.1]} 1-0